fUSD/lending_fUSD_20250930
["ID","MTS","AMOUNT","RATE_DAILY","PERIOD"]
[388546187,1759236794006,-485.30627217,0.00021095,2]
[388546188,1759236794016,-636.3,0.00021095,2]
[388546189,1759236794026,-1351.71,0.00021095,2]
[388546190,1759236794037,-500.0,0.00021095,2]
[388546191,1759236794047,-4883.0,0.00021095,2]
[388546192,1759236794057,-4753.48,0.00021095,2]
[388546193,1759236794068,-934.85,0.00021095,2]
[388546194,1759236794080,-500.0,0.00021095,2]
[388546195,1759236794092,-12816.21,0.00021095,2]
[388546196,1759236794103,-1515.69,0.00021095,2]
[388546197,1759236794115,-4248.48,0.00021095,2]
[388546198,1759236794125,-3443.7,0.00021095,2]
[388546199,1759236794135,-1085.56,0.00021095,2]
[388546200,1759236794146,-10208.2,0.00021095,2]
[388546201,1759236794156,-500.0,0.00021095,2]
[388546202,1759236794166,-500.0,0.00021095,2]
[388546203,1759236794182,-560.67,0.00021095,2]
[388546204,1759236794193,-18773.04,0.00021095,2]
[388546205,1759236794203,-821.31,0.00021095,2]
[388546206,1759236794213,-961.69,0.00021095,2]
[388546207,1759236794224,-500.0,0.00021095,2]
[388546208,1759236794234,-666.51,0.00021095,2]
[388546209,1759236794244,-1029.44,0.00021095,2]
[388546210,1759236794255,-2759.4,0.00021095,2]
[388546211,1759236794266,-6876.3,0.00021095,2]
[388546212,1759236794276,-1050.1,0.00021095,2]
[388546213,1759236794287,-3187.48,0.00021095,2]
[388546214,1759236794298,-1729.31,0.00021095,2]
[388546215,1759236794309,-1339.37,0.00021095,2]
[388546216,1759236794319,-1344.1,0.00021095,2]
[388546217,1759236794330,-797.07,0.00021095,2]
[388546218,1759236794340,-6717.68,0.00021095,2]
[388546219,1759236794351,-500.0,0.00021095,2]
[388546220,1759236794362,-3703.76,0.00021095,2]
[388546221,1759236794372,-3484.89,0.00021095,2]
[388546222,1759236794383,-1238.43,0.00021095,2]
[388546223,1759236794394,-3586.23,0.00021095,2]
[388546224,1759236794404,-1514.61,0.00021095,2]
[388546225,1759236794414,-4706.84,0.00021095,2]
[388546226,1759236794424,-500.0,0.00021095,2]
[388546227,1759236794434,-201.44480749,0.00021096,2]
[388546228,1759236794444,-485.0,0.00021096,2]
[388546229,1759236794455,-250.0,0.00021096,2]
[388546230,1759236794464,-500.0,0.00021096,2]
[388546231,1759236794476,-500.0,0.00021096,2]
[388546232,1759236794487,-200.0,0.00021096,2]
[388546233,1759236794498,-202.73878866,0.00021096,2]
[388546234,1759236794508,-500.0,0.00021096,2]
[388546235,1759236794518,-203.39652016,0.00021096,2]
[388546236,1759236794529,-494.0,0.00021096,2]
[388546237,1759236794542,-250.0,0.00021096,2]
[388546238,1759236794552,-1178.0,0.00021096,2]
[388546239,1759236794563,-500.0,0.00021096,2]
[388546240,1759236794579,-426.0,0.00021096,2]
[388546241,1759236794589,-500.0,0.00021096,2]
[388546242,1759236794599,-500.0,0.00021096,2]
[388546243,1759236794610,-500.0,0.0002111,2]
[388546244,1759236794620,-150.0,0.0002113,2]
[388546245,1759236794631,-7413.10293127,0.00021197,2]
[388546246,1759236794640,-3169.13723958,0.000212,2]
[388546247,1759236794650,-5902.03736517,0.0002124,2]
[388546248,1759236794661,-1649.87,0.00021352,2]
[388546249,1759236794671,-500.0,0.00021364,2]
[388546250,1759236794681,-1000.0,0.00021364,2]
[388546251,1759236794692,-1000.0,0.00021364,2]
[388546252,1759236794703,-1646.1045816,0.00021364,2]
[388546253,1759236794714,-2500.0,0.00021364,2]
[388546254,1759236794724,-1000.59674642,0.00021364,2]
[388546255,1759236794735,-2500.0,0.00021364,2]
[388546256,1759236794745,-500.81562817,0.00021364,2]
[388546257,1759236794755,-200.94098698,0.00021364,2]
[388546258,1759236794765,-529.55,0.00021369,2]
[388546259,1759236794775,-1002.0,0.00021369,2]
[388546260,1759236794786,-802.64,0.00021369,2]
[388546261,1759236794796,-571.1,0.00021369,2]
[388546262,1759236794808,-547.3,0.00021369,2]
[388546263,1759236794818,-500.0,0.00021369,2]
[388546264,1759236794829,-500.0,0.00021369,2]
[388546265,1759236794839,-915.94,0.00021369,2]
[388546266,1759236794850,-500.0,0.00021369,2]
[388546267,1759236794862,-617.03443123,0.00021369,2]
[388546268,1759236794872,-500.0,0.00021369,2]
[388546269,1759236794883,-661.48,0.00021369,2]
[388546270,1759236794893,-633.92,0.00021369,2]
[388546271,1759236794903,-500.0,0.00021369,2]
[388546272,1759236794913,-916.09,0.00021369,2]
[388546273,1759236794923,-1022.35,0.00021369,2]
[388546274,1759236794932,-1020.5,0.00021369,2]
[388546275,1759236794942,-500.0,0.00021369,2]
[388546276,1759236794952,-500.0,0.00021369,2]
[388546277,1759236794966,-607.08,0.00021369,2]
[388546278,1759236794976,-500.0,0.00021369,2]
[388546279,1759236794987,-500.0,0.00021369,2]
[388546280,1759236794997,-500.0,0.00021369,2]
[388546281,1759236795007,-500.0,0.00021369,2]
[388546282,1759236795017,-500.0,0.00021369,2]
[388546283,1759236795027,-625.12,0.00021369,2]
[388546284,1759236795040,-500.0,0.00021369,2]
[388546285,1759236795050,-1964.83,0.00021369,2]
[388546286,1759236795060,-1015.48,0.00021369,2]
[388546287,1759236795070,-500.0,0.00021369,2]
[388546288,1759236795080,-500.0,0.00021369,2]
[388546289,1759236795089,-562.0,0.00021369,2]
[388546290,1759236795100,-500.0,0.00021369,2]
[388546291,1759236795110,-2282.05,0.00021369,2]
[388546292,1759236795120,-852.25,0.00021369,2]
[388546293,1759236795130,-2416.93,0.00021369,2]
[388546294,1759236795140,-646.78,0.00021369,2]
[388546295,1759236795150,-500.0,0.00021369,2]
[388546296,1759236795160,-1431.48,0.00021369,2]
[388546297,1759236795170,-509.83,0.00021369,2]
[388546298,1759236795180,-768.16,0.00021369,2]
[388546299,1759236795191,-500.0,0.00021369,2]
[388546300,1759236795202,-500.0,0.00021369,2]
[388546301,1759236795213,-775.97,0.00021369,2]
[388546302,1759236795223,-500.0,0.00021369,2]
[388546303,1759236795233,-806.16,0.00021369,2]
[388546304,1759236795243,-1121.26,0.00021369,2]
[388546305,1759236795253,-789.94,0.00021369,2]
[388546306,1759236795263,-789.94,0.00021369,2]
[388546307,1759236795274,-1244.26,0.00021369,2]
[388546308,1759236795283,-616.9,0.00021369,2]
[388546309,1759236795294,-500.0,0.00021369,2]
[388546310,1759236795304,-500.0,0.00021369,2]
[388546311,1759236795315,-500.0,0.00021369,2]
[388546312,1759236795327,-528.24,0.00021369,2]
[388546313,1759236795338,-500.0,0.00021369,2]
[388546314,1759236795349,-2647.91,0.00021369,2]
[388546315,1759236795360,-500.0,0.00021369,2]
[388546316,1759236795370,-568.85,0.00021369,2]
[388546317,1759236795380,-500.0,0.00021369,2]
[388546318,1759236795390,-500.0,0.00021369,2]
[388546319,1759236795400,-956.14,0.00021369,2]
[388546320,1759236795409,-500.0,0.00021369,2]
[388546321,1759236795419,-577.88,0.00021369,2]
[388546322,1759236795430,-2697.95,0.00021369,2]
[388546323,1759236795440,-1823.42,0.00021369,2]
[388546324,1759236795450,-500.0,0.00021369,2]
[388546325,1759236795460,-803.3,0.00021369,2]
[388546326,1759236795470,-779.29,0.00021369,2]
[388546327,1759236795483,-724.75,0.00021369,2]
[388546328,1759236795495,-780.81,0.00021369,2]
[388546329,1759236795506,-788.0,0.00021369,2]
[388546330,1759236795516,-500.0,0.00021369,2]
[388546331,1759236795526,-1140.67,0.00021369,2]
[388546332,1759236795536,-2507.06,0.00021369,2]
[388546333,1759236795546,-500.0,0.00021369,2]
[388546334,1759236795556,-961.56,0.00021369,2]
[388546335,1759236795573,-500.0,0.00021369,2]
[388546336,1759236795589,-500.0,0.00021369,2]
[388546337,1759236795599,-178.30643648,0.00021369,2]
[388546338,1759236795610,-2101.19,0.00021369,2]
[388546339,1759236795622,-500.0,0.00021369,2]
[388546340,1759236795635,-1215.25,0.00021369,2]
[388546341,1759236795647,-1164.62,0.00021369,2]
[388546342,1759236795659,-500.0,0.00021369,2]
[388546343,1759236795670,-1334.02,0.00021369,2]
[388546344,1759236795682,-1278.43,0.00021369,2]
[388546345,1759236795693,-840.44,0.00021369,2]
[388546346,1759236795703,-683.71,0.00021369,2]
[388546347,1759236795713,-504.4,0.00021369,2]
[388546348,1759236795724,-500.0,0.00021369,2]
[388546349,1759236795734,-1955.63,0.00021369,2]
[388546350,1759236795744,-1874.15,0.00021369,2]
[388546351,1759236795754,-1273.89,0.00021369,2]
[388546352,1759236795764,-500.0,0.00021369,2]
[388546353,1759236795775,-3314.41,0.00021369,2]
[388546354,1759236795785,-500.0,0.00021369,2]
[388546355,1759236795796,-650.69,0.00021369,2]
[388546356,1759236795806,-500.0,0.00021369,2]
[388546357,1759236795822,-500.0,0.00021369,2]
[388546358,1759236795832,-500.0,0.00021369,2]
[388546359,1759236795842,-500.0,0.00021369,2]
[388546360,1759236795852,-500.0,0.00021369,2]
[388546361,1759236795866,-500.0,0.00021369,2]
[388546362,1759236795876,-686.0,0.00021369,2]
[388546363,1759236795886,-500.0,0.00021369,2]
[388546364,1759236795897,-500.0,0.00021369,2]
[388546365,1759236795907,-353.84428615,0.00021369,2]
[388546366,1759236795918,-2599.85,0.00021369,2]
[388546367,1759236795930,-500.0,0.00021369,2]
[388546368,1759236795943,-1308.84,0.00021369,2]
[388546369,1759236795953,-500.0,0.00021369,2]
[388546370,1759236795963,-500.0,0.00021369,2]
[388546371,1759236795974,-500.0,0.00021369,2]
[388546372,1759236795985,-500.0,0.00021369,2]
[388546373,1759236795995,-1204.83,0.00021369,2]
[388546374,1759236796005,-500.0,0.00021369,2]
[388546375,1759236796016,-721.9,0.00021369,2]
[388546376,1759236796026,-500.0,0.00021369,2]
[388546377,1759236796037,-500.0,0.00021369,2]
[388546378,1759236796048,-785.77,0.00021369,2]
[388546379,1759236796059,-589.91,0.00021369,2]
[388546380,1759236796070,-500.0,0.00021369,2]
[388546381,1759236796080,-1563.28,0.00021369,2]
[388546382,1759236796090,-1019.02,0.00021369,2]
[388546383,1759236796100,-500.0,0.00021369,2]
[388546384,1759236796112,-531.72,0.00021369,2]
[388546385,1759236796122,-500.0,0.00021369,2]
[388546386,1759236796133,-500.0,0.00021369,2]
[388546387,1759236796143,-1956.66,0.00021369,2]
[388546388,1759236796153,-1127.24,0.00021369,2]
[388546389,1759236796163,-758.97,0.00021369,2]
[388546390,1759236796173,-500.0,0.00021369,2]
[388546391,1759236796183,-400.0,0.00021369,2]
[388546392,1759236796193,-557.06,0.00021369,2]
[388546393,1759236796207,-1325.61,0.00021369,2]
[388546394,1759236796217,-500.0,0.00021369,2]
[388546395,1759236796228,-1775.13,0.00021369,2]
[388546396,1759236796238,-500.0,0.00021369,2]
[388546397,1759236796523,-540.37,0.00021369,2]
[388546398,1759236796533,-500.0,0.00021369,2]
[388546399,1759236796544,-859.64,0.00021369,2]
[388546400,1759236796553,-1174.76,0.00021369,2]
[388546401,1759236796562,-1125.81,0.00021369,2]
[388546402,1759236796572,-512.08,0.00021369,2]
[388546403,1759236796581,-500.0,0.00021369,2]
[388546404,1759236796591,-500.0,0.00021369,2]
[388546405,1759236796600,-1660.39,0.00021369,2]
[388546406,1759236796609,-500.0,0.00021369,2]
[388546407,1759236796619,-500.0,0.00021369,2]
[388546408,1759236796628,-583.2,0.00021369,2]
[388546409,1759236796639,-500.0,0.00021369,2]
[388546410,1759236796649,-2361.75,0.00021369,2]
[388546411,1759236796661,-1580.78,0.00021369,2]
[388546412,1759236796671,-3278.0,0.00021369,2]
[388546413,1759236796681,-500.0,0.00021369,2]
[388546414,1759236796690,-2646.42,0.00021369,2]
[388546415,1759236796700,-766.13,0.00021369,2]
[388546416,1759236796710,-585.79,0.00021369,2]
[388546417,1759236796721,-610.64,0.00021369,2]
[388546418,1759236796731,-819.73,0.00021369,2]
[388546419,1759236796740,-500.0,0.00021369,2]
[388546420,1759236796750,-237.39102862,0.00021369,2]
[388546421,1759236796760,-1581.45,0.00021369,2]
[388546422,1759236796770,-716.83,0.00021369,2]
[388546423,1759236796779,-749.24,0.00021369,2]
[388546424,1759236796788,-505.79,0.00021369,2]
[388546425,1759236796797,-500.0,0.00021369,2]
[388546426,1759236796807,-784.29,0.00021369,2]
[388546427,1759236796816,-500.0,0.00021369,2]
[388546428,1759236796825,-511.55,0.00021369,2]
[388546429,1759236796835,-945.55,0.00021369,2]
[388546430,1759236796844,-500.0,0.00021369,2]
[388546431,1759236796855,-1193.9,0.00021369,2]
[388546432,1759236796870,-500.0,0.00021369,2]
[388546433,1759236796879,-278.82578,0.00021369,2]
[388546434,1759236796891,-1243.67,0.00021369,2]
[388546435,1759236796900,-500.0,0.00021369,2]
[388546436,1759236796910,-500.0,0.00021369,2]
[388546437,1759236796919,-1156.41,0.00021369,2]
[388546438,1759236796929,-500.0,0.00021369,2]
[388546439,1759236796938,-500.0,0.00021369,2]
[388546440,1759236796947,-595.67,0.00021369,2]
[388546441,1759236796956,-500.0,0.00021369,2]
[388546442,1759236796965,-500.0,0.00021369,2]
[388546443,1759236796974,-2989.39,0.00021369,2]
[388546444,1759236796983,-500.0,0.00021369,2]
[388546445,1759236796992,-588.07,0.00021369,2]
[388546446,1759236797002,-680.87,0.00021369,2]
[388546447,1759236797011,-652.5,0.00021369,2]
[388546448,1759236797021,-1030.88,0.00021369,2]
[388546449,1759236797030,-500.0,0.00021369,2]
[388546450,1759236797041,-641.82,0.00021369,2]
[388546451,1759236797050,-500.0,0.00021369,2]
[388546452,1759236797060,-500.0,0.00021369,2]
[388546453,1759236797070,-1386.24,0.00021369,2]
[388546454,1759236797079,-839.19,0.00021369,2]
[388546455,1759236797088,-500.0,0.00021369,2]
[388546456,1759236797097,-1351.91,0.00021369,2]
[388546457,1759236797106,-946.99,0.00021369,2]
[388546458,1759236797115,-795.93,0.00021369,2]
[388546459,1759236797125,-500.0,0.00021369,2]
[388546460,1759236797135,-197.59,0.00021369,2]
[388546461,1759236797145,-538.01,0.00021369,2]
[388546462,1759236797154,-852.65,0.00021369,2]
[388546463,1759236797163,-500.0,0.00021369,2]
[388546464,1759236797172,-517.57,0.00021369,2]
[388546465,1759236797183,-1588.62,0.00021369,2]
[388546466,1759236797192,-670.32,0.00021369,2]
[388546467,1759236797202,-1470.44,0.00021369,2]
[388546468,1759236797212,-500.0,0.00021369,2]
[388546469,1759236797221,-1409.18,0.00021369,2]
[388546470,1759236797230,-1632.14,0.00021369,2]
[388546471,1759236797240,-500.0,0.00021369,2]
[388546472,1759236797249,-3131.99,0.00021369,2]
[388546473,1759236797259,-890.61,0.00021369,2]
[388546474,1759236797269,-1628.15,0.00021369,2]
[388546475,1759236797278,-650.41,0.00021369,2]
[388546476,1759236797287,-2154.22,0.00021369,2]
[388546477,1759236797297,-500.0,0.00021369,2]
[388546478,1759236797306,-500.0,0.00021369,2]
[388546479,1759236797316,-912.82,0.00021369,2]
[388546480,1759236797326,-1825.23,0.00021369,2]
[388546481,1759236797336,-512.57,0.00021369,2]
[388546482,1759236797346,-885.4,0.00021369,2]
[388546483,1759236797356,-374.60705024,0.00021369,2]
[388546484,1759236797366,-1622.23,0.00021369,2]
[388546485,1759236797375,-500.0,0.00021369,2]
[388546486,1759236797384,-500.0,0.00021369,2]
[388546487,1759236797393,-500.0,0.00021369,2]
[388546488,1759236797403,-500.0,0.00021369,2]
[388546489,1759236797413,-1277.63,0.00021369,2]
[388546490,1759236797423,-695.83,0.00021369,2]
[388546491,1759236797433,-559.30013261,0.00021369,2]
[388546492,1759236797442,-620.42,0.00021369,2]
[388546493,1759236797451,-1030.07,0.00021369,2]
[388546494,1759236797462,-500.0,0.00021369,2]
[388546495,1759236797471,-500.0,0.00021369,2]
[388546496,1759236797480,-1095.55,0.00021369,2]
[388546497,1759236797490,-500.0,0.00021369,2]
[388546498,1759236797499,-685.27,0.00021369,2]
[388546499,1759236797509,-500.0,0.00021369,2]
[388546500,1759236797518,-2674.6,0.00021369,2]
[388546501,1759236797528,-1292.53,0.00021369,2]
[388546502,1759236797537,-3185.15,0.00021369,2]
[388546503,1759236797547,-500.0,0.00021369,2]
[388546504,1759236797556,-1956.66,0.00021369,2]
[388546505,1759236797565,-500.0,0.00021369,2]
[388546506,1759236797574,-1422.36,0.00021369,2]
[388546507,1759236797584,-500.0,0.00021369,2]
[388546508,1759236797593,-794.69,0.00021369,2]
[388546509,1759236797602,-534.36,0.00021369,2]
[388546510,1759236797612,-500.0,0.00021369,2]
[388546511,1759236797621,-500.0,0.00021369,2]
[388546512,1759236797630,-261.9638422,0.00021369,2]
[388546513,1759236797640,-500.0,0.00021369,2]
[388546514,1759236797649,-500.0,0.00021369,2]
[388546515,1759236797659,-500.0,0.00021369,2]
[388546516,1759236797668,-2498.24,0.00021369,2]
[388546517,1759236797677,-500.0,0.00021369,2]
[388546518,1759236797686,-1125.03,0.00021369,2]
[388546519,1759236797696,-796.57,0.00021369,2]
[388546520,1759236797705,-500.0,0.00021369,2]
[388546521,1759236797714,-2448.47,0.00021369,2]
[388546522,1759236797723,-500.0,0.00021369,2]
[388546523,1759236797732,-548.22,0.00021369,2]
[388546524,1759236797742,-572.4,0.00021369,2]
[388546525,1759236797752,-2221.26,0.00021369,2]
[388546526,1759236797761,-1388.86,0.00021369,2]
[388546527,1759236797770,-500.0,0.00021369,2]
[388546528,1759236797779,-500.0,0.00021369,2]
[388546529,1759236797789,-500.0,0.00021369,2]
[388546530,1759236797799,-1006.6,0.00021369,2]
[388546531,1759236797808,-2005.31,0.00021369,2]
[388546532,1759236797820,-500.0,0.00021369,2]
[388546533,1759236797830,-500.0,0.00021369,2]
[388546534,1759236797839,-500.0,0.00021369,2]
[388546535,1759236797849,-500.0,0.00021369,2]
[388546536,1759236797861,-620.09,0.00021369,2]
[388546537,1759236797872,-624.7,0.00021369,2]
[388546538,1759236797881,-500.0,0.00021369,2]
[388546539,1759236797891,-500.0,0.00021369,2]
[388546540,1759236797900,-500.0,0.00021369,2]
[388546541,1759236797910,-1612.7,0.00021369,2]
[388546542,1759236797920,-500.0,0.00021369,2]
[388546543,1759236797929,-500.0,0.00021369,2]
[388546544,1759236797941,-500.0,0.00021369,2]
[388546545,1759236797951,-1573.58,0.00021369,2]
[388546546,1759236797960,-1104.98,0.00021369,2]
[388546547,1759236797969,-757.95,0.00021369,2]
[388546548,1759236797980,-1642.32,0.00021369,2]
[388546549,1759236797990,-598.52,0.00021369,2]
[388546550,1759236798000,-500.0,0.00021369,2]
[388546551,1759236798009,-1693.84,0.00021369,2]
[388546552,1759236798019,-719.09,0.00021369,2]
[388546553,1759236798028,-500.0,0.00021369,2]
[388546554,1759236798038,-500.0,0.00021369,2]
[388546555,1759236798047,-677.44,0.00021369,2]
[388546556,1759236798057,-500.0,0.00021369,2]
[388546557,1759236798066,-2521.54,0.00021369,2]
[388546558,1759236798075,-3585.86,0.00021369,2]
[388546559,1759236798084,-500.0,0.00021369,2]
[388546560,1759236798094,-2800.4,0.00021369,2]
[388546561,1759236798103,-1137.08,0.00021369,2]
[388546562,1759236798113,-547.83,0.00021369,2]
[388546563,1759236798123,-500.0,0.00021369,2]
[388546564,1759236798132,-5163.16,0.00021369,2]
[388546565,1759236798142,-747.88,0.00021369,2]
[388546566,1759236798152,-628.52,0.00021369,2]
[388546567,1759236798162,-500.0,0.00021369,2]
[388546568,1759236798172,-500.0,0.00021369,2]
[388546569,1759236798182,-900.53,0.00021369,2]
[388546570,1759236798192,-1711.35,0.00021369,2]
[388546571,1759236798203,-500.0,0.00021369,2]
[388546572,1759236798213,-500.0,0.00021369,2]
[388546573,1759236798224,-627.88,0.00021369,2]
[388546574,1759236798234,-512.86,0.00021369,2]
[388546575,1759236798244,-3534.18,0.00021369,2]
[388546576,1759236798254,-500.0,0.00021369,2]
[388546577,1759236798265,-562.54,0.00021369,2]
[388546578,1759236798275,-789.35,0.00021369,2]
[388546579,1759236798284,-560.58,0.00021369,2]
[388546580,1759236798294,-500.0,0.00021369,2]
[388546581,1759236798305,-500.0,0.00021369,2]
[388546582,1759236798316,-500.0,0.00021369,2]
[388546583,1759236798327,-2386.02,0.00021369,2]
[388546584,1759236798337,-500.0,0.00021369,2]
[388546585,1759236798346,-500.0,0.00021369,2]
[388546586,1759236798355,-1076.9,0.00021369,2]
[388546587,1759236798364,-3657.67,0.00021369,2]
[388546588,1759236798374,-1041.83,0.00021369,2]
[388546589,1759236798384,-3224.35,0.00021369,2]
[388546590,1759236798393,-500.0,0.00021369,2]
[388546591,1759236798403,-2187.82,0.00021369,2]
[388546592,1759236798412,-773.33,0.00021369,2]
[388546593,1759236798422,-1760.32,0.00021369,2]
[388546594,1759236798431,-1240.5,0.00021369,2]
[388546595,1759236798441,-2690.42,0.00021369,2]
[388546596,1759236798451,-4935.23,0.00021369,2]
[388546597,1759236798460,-1587.13,0.00021369,2]
[388546598,1759236798471,-500.0,0.00021369,2]
[388546599,1759236798480,-640.07,0.00021369,2]
[388546600,1759236798490,-500.0,0.00021369,2]
[388546601,1759236798500,-3353.46,0.00021369,2]
[388546602,1759236798512,-2314.25,0.00021369,2]
[388546603,1759236798521,-1533.53,0.00021369,2]
[388546604,1759236798530,-500.0,0.00021369,2]
[388546605,1759236798540,-782.37,0.00021369,2]
[388546606,1759236798550,-6485.87,0.00021369,2]
[388546607,1759236798559,-5250.86,0.00021369,2]
[388546608,1759236798569,-771.28,0.00021369,2]
[388546609,1759236798578,-500.0,0.00021369,2]
[388546610,1759236798587,-3509.91,0.00021369,2]
[388546611,1759236798597,-500.0,0.00021369,2]
[388546612,1759236798606,-500.0,0.00021369,2]
[388546613,1759236798615,-1098.61,0.00021369,2]
[388546614,1759236798624,-2880.85,0.00021369,2]
[388546615,1759236798634,-500.0,0.00021369,2]
[388546616,1759236798644,-524.9,0.00021369,2]
[388546617,1759236798654,-500.0,0.00021369,2]
[388546618,1759236798663,-2100.64,0.00021369,2]
[388546619,1759236798673,-500.0,0.00021369,2]
[388546620,1759236798682,-1955.1,0.00021369,2]
[388546621,1759236798691,-1615.18,0.00021369,2]
[388546622,1759236798700,-571.65,0.00021369,2]
[388546623,1759236798710,-663.18,0.00021369,2]
[388546624,1759236798719,-557.89678612,0.00021369,2]
[388546625,1759236798728,-1218.74,0.00021369,2]
[388546626,1759236798738,-2233.57,0.00021369,2]
[388546627,1759236798747,-1109.61,0.00021369,2]
[388546628,1759236798757,-500.0,0.00021369,2]
[388546629,1759236798766,-500.0,0.00021369,2]
[388546630,1759236798776,-705.44,0.00021369,2]
[388546631,1759236798785,-500.0,0.00021369,2]
[388546632,1759236798798,-500.0,0.00021369,2]
[388546633,1759236798807,-551.13,0.00021369,2]
[388546634,1759236798816,-5689.13,0.00021369,2]
[388546635,1759236798826,-4642.17,0.00021369,2]
[388546636,1759236798835,-1432.91,0.00021369,2]
[388546637,1759236798844,-977.34,0.00021369,2]
[388546638,1759236798854,-500.0,0.00021369,2]
[388546639,1759236798867,-500.0,0.00021369,2]
[388546640,1759236798876,-1417.17,0.00021369,2]
[388546641,1759236798885,-1566.99,0.00021369,2]
[388546642,1759236798895,-2166.0,0.00021369,2]
[388546643,1759236798904,-3509.0,0.00021369,2]
[388546644,1759236798914,-500.0,0.00021369,2]
[388546645,1759236798923,-500.0,0.00021369,2]
[388546646,1759236798932,-500.0,0.00021369,2]
[388546647,1759236798943,-596.77,0.00021369,2]
[388546648,1759236798953,-533.36987643,0.00021369,2]
[388546649,1759236798963,-500.0,0.00021369,2]
[388546650,1759236798972,-642.61,0.00021369,2]
[388546651,1759236798982,-2949.36,0.00021369,2]
[388546652,1759236798992,-2718.85,0.00021369,2]
[388546653,1759236799001,-795.8,0.00021369,2]
[388546654,1759236799011,-500.0,0.00021369,2]
[388546655,1759236799020,-3687.17,0.00021369,2]
[388546656,1759236799030,-1201.28,0.00021369,2]
[388546657,1759236799041,-684.53,0.00021369,2]
[388546658,1759236799050,-4592.8,0.00021369,2]
[388546659,1759236799059,-500.0,0.00021369,2]
[388546660,1759236799069,-4326.28,0.00021369,2]
[388546661,1759236799079,-1286.78,0.00021369,2]
[388546662,1759236799088,-500.0,0.00021369,2]
[388546663,1759236799098,-500.0,0.00021369,2]
[388546664,1759236799107,-500.0,0.00021369,2]
[388546665,1759236799116,-500.0,0.00021369,2]
[388546666,1759236799125,-2180.29,0.00021369,2]
[388546667,1759236799135,-500.0,0.00021369,2]
[388546668,1759236799145,-500.0,0.00021369,2]
[388546669,1759236799154,-500.0,0.00021369,2]
[388546670,1759236799164,-532.98,0.00021369,2]
[388546671,1759236799174,-4847.84,0.00021369,2]
[388546672,1759236799183,-608.6,0.00021369,2]
[388546673,1759236799192,-500.0,0.00021369,2]
[388546674,1759236799202,-4847.82,0.00021369,2]
[388546675,1759236799212,-500.0,0.00021369,2]
[388546676,1759236799221,-500.0,0.00021369,2]
[388546677,1759236799232,-3800.58,0.00021369,2]
[388546678,1759236799241,-500.0,0.00021369,2]
[388546679,1759236799250,-575.5,0.00021369,2]
[388546680,1759236799260,-500.0,0.00021369,2]
[388546681,1759236799270,-701.03,0.00021369,2]
[388546682,1759236799281,-1789.31,0.00021369,2]
[388546683,1759236799290,-2662.14,0.00021369,2]
[388546684,1759236799299,-2533.68,0.00021369,2]
[388546685,1759236799309,-500.0,0.00021369,2]
[388546686,1759236799320,-500.0,0.00021369,2]